fUSD/lending_fUSD_20260628
["ID","MTS","AMOUNT","RATE_DAILY","PERIOD"]
[426548842,1782580239000,-157.23,0.00024658,2]
[426548840,1782580239000,-1000.0,0.00024658,2]
[426548839,1782580239000,-935.0,0.0002461,2]
[426548787,1782580239000,-360.0,0.00022,2]
[426548843,1782580239000,-157.94,0.00024658,2]
[426548815,1782580239000,-755.55212367,0.00023479,7]
[426548814,1782580239000,-505.06840229,0.00023479,7]
[426548832,1782580239000,-343.73,0.00024298,2]
[426548812,1782580239000,-15655.94455375,0.00023244,2]
[426548792,1782580239000,-725.92406719,0.0002235,2]
[426548819,1782580239000,-2000.0,0.00023812,7]
[426548789,1782580239000,-8438.91,0.00022,2]
[426548785,1782580239000,-251.0,0.00022,2]
[426548793,1782580239000,-157.77226952,0.00022388,2]
[426548790,1782580239000,-201.29,0.00022203,2]
[426548788,1782580239000,-196.0,0.00022,2]
[426548794,1782580239000,-1870.05,0.00022466,2]
[426548804,1782580239000,-386.0,0.00023,2]
[426548805,1782580239000,-174.0,0.00023,2]
[426548806,1782580239000,-251.0,0.00023,2]
[426548808,1782580239000,-360.0,0.00023,2]
[426548807,1782580239000,-175.0,0.00023,2]
[426548795,1782580239000,-286.30071768,0.00022479,7]
[426548797,1782580239000,-159.29,0.0002258,2]
[426548809,1782580239000,-196.0,0.00023,2]
[426548796,1782580239000,-255.71,0.0002258,2]
[426548811,1782580239000,-4195.5,0.00023148,7]
[426548810,1782580239000,-2002.45554309,0.00023118,2]
[426548799,1782580239000,-4083.93901144,0.00022837,2]
[426548803,1782580239000,-586.0,0.00023,2]
[426548813,1782580239000,-201.29,0.00023286,2]
[426548802,1782580239000,-218.0,0.00023,2]
[426548801,1782580239000,-173.50428845,0.00023,2]
[426548798,1782580239000,-201.29,0.00022744,2]
[426548800,1782580239000,-205.17,0.00022973,2]
[426548894,1782580240000,-411.1985231,0.00025794,2]
[426548874,1782580240000,-350.0,0.00025337,6]
[426548875,1782580240000,-205.17,0.00025525,2]
[426548879,1782580240000,-464.44419568,0.00025791,2]
[426548882,1782580240000,-538.43461889,0.00025791,2]
[426548880,1782580240000,-491.60221924,0.00025791,2]
[426548877,1782580240000,-157.23,0.00025562,7]
[426548881,1782580240000,-210.06134565,0.00025791,2]
[426548876,1782580240000,-157.94,0.00025561,7]
[426548886,1782580240000,-434.43199227,0.00025791,2]
[426548885,1782580240000,-428.28681894,0.00025791,2]
[426548887,1782580240000,-472.98031479,0.00025791,2]
[426548909,1782580240000,-13280.841044,0.00025855,2]
[426548890,1782580240000,-350.21886777,0.00025791,2]
[426548889,1782580240000,-223.92181027,0.00025791,2]
[426548897,1782580240000,-428.07259251,0.00025794,2]
[426548896,1782580240000,-496.36847007,0.00025794,2]
[426548891,1782580240000,-242.63898712,0.00025791,2]
[426548888,1782580240000,-246.48157726,0.00025791,2]
[426548895,1782580240000,-223.31866797,0.00025794,2]
[426548893,1782580240000,-159.17844452,0.00025794,2]
[426548908,1782580240000,-19109.5851521,0.00025855,2]
[426548902,1782580240000,-246.65241901,0.00025799,2]
[426548878,1782580240000,-249.36165436,0.00025791,2]
[426548892,1782580240000,-220.71277163,0.00025791,2]
[426548872,1782580240000,-151.0,0.00025221,7]
[426548906,1782580240000,-1864.46902471,0.000258,2]
[426548873,1782580240000,-4083.93901144,0.00025224,2]
[426548844,1782580240000,-1006.94,0.00024722,7]
[426548847,1782580240000,-245.80110962,0.00024952,2]
[426548846,1782580240000,-309.62946379,0.00024952,2]
[426548848,1782580240000,-358.95641259,0.00024952,2]
[426548851,1782580240000,-217.21599613,0.00024952,2]
[426548852,1782580240000,-236.4901574,0.00024952,2]
[426548850,1782580240000,-214.14340947,0.00024952,2]
[426548855,1782580240000,-248.18423503,0.00024955,2]
[426548853,1782580240000,-175.10943388,0.00024952,2]
[426548849,1782580240000,-164.03628808,0.00024952,2]
[426548854,1782580240000,-205.59926155,0.00024955,2]
[426548884,1782580240000,-328.07257616,0.00025791,2]
[426548857,1782580240000,-985.76,0.00024961,7]
[426548867,1782580240000,-252.0,0.00025,2]
[426548870,1782580240000,-199.0,0.00025,2]
[426548869,1782580240000,-367.99488629,0.00025,2]
[426548859,1782580240000,-156.84109195,0.00024963,2]
[426548858,1782580240000,-926.54,0.00024961,7]
[426548856,1782580240000,-214.03629626,0.00024955,2]
[426548863,1782580240000,-600.0,0.00025,2]
[426548871,1782580240000,-2000.0,0.000252,2]
[426548861,1782580240000,-230.0,0.00025,2]
[426548865,1782580240000,-398.47984577,0.00025,2]
[426548883,1782580240000,-200.19685585,0.00025791,2]
[426548868,1782580240000,-189.0,0.00025,2]
[426548904,1782580240000,-205.84136639,0.000258,4]
[426548845,1782580240000,-15655.94455375,0.00024933,2]
[426548898,1782580240000,-241.75024026,0.00025794,2]
[426548935,1782580240000,-214.04409143,0.00026351,2]
[426548929,1782580240000,-500.0,0.00026286,2]
[426548944,1782580240000,-717.91282518,0.00026351,2]
[426548947,1782580240000,-246.59017229,0.00026351,2]
[426548948,1782580240000,-203.75596274,0.00026351,2]
[426548936,1782580240000,-498.72330871,0.00026351,2]
[426548946,1782580240000,-156.83342897,0.00026351,2]
[426548945,1782580240000,-207.93534604,0.00026351,2]
[426548942,1782580240000,-737.40332886,0.00026351,2]
[426548937,1782580240000,-279.37579815,0.00026351,2]
[426548940,1782580240000,-211.00893388,0.00026351,2]
[426548939,1782580240000,-225.98008549,0.00026351,2]
[426548938,1782580240000,-284.92703272,0.00026351,2]
[426548941,1782580240000,-619.25892758,0.00026351,2]
[426548943,1782580240000,-301.24228956,0.00026351,2]
[426548949,1782580240000,-333.72730624,0.00026351,2]
[426548951,1782580240000,-183.26906467,0.00026351,2]
[426548953,1782580240000,-405.28930461,0.00026351,2]
[426548950,1782580240000,-271.04296704,0.00026351,2]
[426548952,1782580240000,-193.4743659,0.00026351,2]
[426548900,1782580240000,-231.20905211,0.00025794,2]
[426548954,1782580240000,-213.3818519,0.00026351,2]
[426548955,1782580240000,-203.55800447,0.00026351,2]
[426548958,1782580240000,-239.85686542,0.00026351,2]
[426548957,1782580240000,-492.10886424,0.00026351,2]
[426548931,1782580240000,-151.0,0.00026287,2]
[426548934,1782580240000,-428.92639852,0.00026351,2]
[426548956,1782580240000,-389.36771665,0.00026351,2]
[426548932,1782580240000,-240.65489132,0.00026347,2]
[426548930,1782580240000,-1496.14,0.00026286,2]
[426548901,1782580240000,-192.91316665,0.00025794,2]
[426548910,1782580240000,-10537.6694461,0.00025855,2]
[426548903,1782580240000,-1100.0,0.000258,9]
[426548907,1782580240000,-2674.6504678,0.00025855,2]
[426548899,1782580240000,-224.75214762,0.00025794,2]
[426548912,1782580240000,-4348.78796592,0.00025855,2]
[426548911,1782580240000,-1230182.04324099,0.00025855,2]
[426548913,1782580240000,-648.71211241,0.00025855,2]
[426548914,1782580240000,-5266.78111499,0.00025855,2]
[426548916,1782580240000,-2000.0,0.000259,2]
[426548915,1782580240000,-124129.53492079,0.00025855,2]
[426548905,1782580240000,-1002.72731129,0.000258,2]
[426548918,1782580240000,-2002.45554309,0.00025924,2]
[426548919,1782580240000,-8263.66376737,0.00026,2]
[426548927,1782580240000,-1496.14,0.00026227,2]
[426548933,1782580240000,-327.72325718,0.00026347,2]
[426548925,1782580240000,-500.0,0.00026227,2]
[426548924,1782580240000,-500.0,0.00026227,2]
[426548926,1782580240000,-1496.14,0.00026227,2]
[426548923,1782580240000,-8263.66376737,0.00026222,2]
[426548920,1782580240000,-150.0,0.00026088,7]
[426548922,1782580240000,-732.72017833,0.00026218,2]
[426548917,1782580240000,-2200.0,0.000259,9]
[426548921,1782580240000,-150.0,0.00026122,5]
[426548928,1782580240000,-301535.7527285,0.00026228,2]
[426548983,1782580241000,-400.3937117,0.00026354,2]
[426548987,1782580241000,-316.68583268,0.00026354,2]
[426548985,1782580241000,-483.50048051,0.00026354,2]
[426548975,1782580241000,-202.87715039,0.00026354,2]
[426548992,1782580241000,-493.30483802,0.00026359,2]
[426548990,1782580241000,-385.82633331,0.00026354,2]
[426548991,1782580241000,-232.72754508,0.00026359,2]
[426548996,1782580241000,-257.78203903,0.00026359,2]
[426548997,1782580241000,-153.14884206,0.00026388,60]
[426548994,1782580241000,-316.58443221,0.00026359,2]
[426548995,1782580241000,-215.16216557,0.00026359,2]
[426548989,1782580241000,-485.27797425,0.00026354,2]
[426548988,1782580241000,-462.41810423,0.00026354,2]
[426548986,1782580241000,-449.50429524,0.00026354,2]
[426549000,1782580241000,-8263.66376737,0.00026444,2]
[426549002,1782580241000,-157.23,0.00026466,30]
[426548998,1782580241000,-502.0,0.00026411,2]
[426549001,1782580241000,-157.94,0.00026465,30]
[426548976,1782580241000,-309.31757973,0.00026354,2]
[426548993,1782580241000,-249.74898277,0.00026359,2]
[426548979,1782580241000,-215.15973231,0.00026354,2]
[426548963,1782580241000,-709.47047219,0.00026351,2]
[426548982,1782580241000,-306.25824092,0.00026354,2]
[426548999,1782580241000,-4083.93901144,0.00026418,2]
[426548960,1782580241000,-651.6479884,0.00026351,2]
[426548959,1782580241000,-642.43022841,0.00026351,2]
[426548966,1782580241000,-420.12269131,0.00026351,2]
[426548973,1782580241000,-445.59890498,0.00026354,2]
[426548967,1782580241000,-289.69765101,0.00026351,2]
[426548971,1782580241000,-318.35688904,0.00026354,2]
[426548972,1782580241000,-303.82646486,0.00026354,2]
[426548968,1782580241000,-525.32830165,0.00026351,2]
[426548984,1782580241000,-642.10888877,0.00026354,2]
[426548962,1782580241000,-163.86162859,0.00026351,2]
[426548961,1782580241000,-218.86884991,0.00026351,2]
[426548965,1782580241000,-169.24429749,0.00026351,2]
[426548970,1782580241000,-441.42554325,0.00026351,2]
[426548964,1782580241000,-182.77591764,0.00026351,2]
[426548977,1782580241000,-446.63733594,0.00026354,2]
[426548974,1782580241000,-616.79778465,0.00026354,2]
[426548978,1782580241000,-400.71565183,0.00026354,2]
[426548981,1782580241000,-744.5527051,0.00026354,2]
[426548980,1782580241000,-213.32779449,0.00026354,2]
[426548969,1782580241000,-176.22227347,0.00026351,2]
[426549003,1782580241000,-15655.94455375,0.00026622,2]
[426549036,1782580241000,-935.0,0.0002761,2]
[426549004,1782580241000,-8263.66376737,0.00026667,2]
[426549026,1782580241000,-4800.91,0.00027397,10]
[426549033,1782580241000,-150.0,0.0002761,2]
[426549031,1782580241000,-8263.66376737,0.00027556,2]
[426549032,1782580241000,-151.0,0.00027572,2]
[426549034,1782580241000,-1277.0,0.0002761,2]
[426549040,1782580241000,-189.083,0.00027757,17]
[426549035,1782580241000,-216.0,0.0002761,2]
[426549038,1782580241000,-573.82,0.00027625,2]
[426549041,1782580241000,-8263.66376737,0.00027778,2]
[426549028,1782580241000,-4783.59,0.00027397,10]
[426549039,1782580241000,-2036.243,0.00027757,17]
[426549037,1782580241000,-4083.93901144,0.00027612,2]
[426549044,1782580241000,-168.09646061,0.000279,2]
[426549043,1782580241000,-168.09646063,0.000279,2]
[426549046,1782580241000,-226.59,0.00028,7]
[426549049,1782580241000,-2076.0,0.00028,2]
[426549045,1782580241000,-400.0,0.0002799,2]
[426549047,1782580241000,-6330.54144102,0.00028,8]
[426549050,1782580241000,-661.91438295,0.00028182,2]
[426549005,1782580241000,-19828.17556581,0.000268,2]
[426549048,1782580241000,-8263.66376737,0.00028,2]
[426549030,1782580241000,-500.0,0.000275,7]
[426549042,1782580241000,-212.36486878,0.000279,2]
[426549027,1782580241000,-5740.3,0.00027397,10]
[426549006,1782580241000,-8263.66376737,0.00026889,2]
[426549029,1782580241000,-2908.0,0.000275,7]
[426549010,1782580241000,-8263.66376737,0.00027111,2]
[426549007,1782580241000,-1700.0,0.000269,9]
[426549008,1782580241000,-166.0,0.00027021,3]
[426549011,1782580241000,-500.0,0.00027123,2]
[426549012,1782580241000,-150.0,0.00027123,2]
[426549014,1782580241000,-150.0,0.00027123,2]
[426549016,1782580241000,-279.22858483,0.00027123,2]
[426549015,1782580241000,-392.69109944,0.00027123,2]
[426549009,1782580241000,-166.0,0.00027021,3]
[426549013,1782580241000,-500.0,0.00027123,2]
[426549018,1782580241000,-500.0,0.00027123,2]
[426549019,1782580241000,-330.899832,0.00027123,2]
[426549020,1782580241000,-251.0,0.00027167,5]
[426549023,1782580241000,-164.53,0.00027397,2]
[426549021,1782580241000,-537.92,0.00027199,2]
[426549022,1782580241000,-8263.66376737,0.00027333,2]
[426549017,1782580241000,-500.0,0.00027123,2]
[426549024,1782580241000,-1500.0,0.00027397,2]
[426549025,1782580241000,-5761.09,0.00027397,10]
[426549098,1782580242000,-2100.0,0.000289,10]
[426549100,1782580242000,-151.0,0.00028993,7]
[426549095,1782580242000,-4083.93901144,0.00028806,2]
[426549103,1782580242000,-1496.14,0.00028995,7]
[426549091,1782580242000,-531.58331265,0.00028685,2]
[426549087,1782580242000,-175.0,0.00028656,30]
[426549085,1782580242000,-157.0,0.00028655,30]
[426549083,1782580242000,-386.0,0.00028655,30]
[426549084,1782580242000,-154.0,0.00028655,30]
[426549086,1782580242000,-251.0,0.00028655,30]
[426549097,1782580242000,-3400.0,0.000289,10]
[426549081,1782580242000,-155.0,0.00028655,30]
[426549088,1782580242000,-155.0,0.00028656,30]
[426549102,1782580242000,-1496.14,0.00028995,7]
[426549106,1782580242000,-10180.78997143,0.00028996,7]
[426549094,1782580242000,-2002.45554309,0.0002873,2]
[426549092,1782580242000,-10901.60790363,0.00028712,2]
[426549096,1782580242000,-151.0,0.00028897,7]
[426549093,1782580242000,-350.0,0.00028725,2]
[426549101,1782580242000,-1496.14,0.00028995,7]
[426549104,1782580242000,-669389.89120957,0.00028996,7]
[426549116,1782580242000,-151.0,0.00028996,7]
[426549105,1782580242000,-11963.23845367,0.00028996,7]
[426549115,1782580242000,-157.980708,0.00028996,7]
[426549109,1782580242000,-151.0,0.00028996,7]
[426549108,1782580242000,-151.0,0.00028996,7]
[426549110,1782580242000,-151.0,0.00028996,7]
[426549080,1782580242000,-218.0,0.00028653,30]
[426549099,1782580242000,-150.0,0.00028986,30]
[426549090,1782580242000,-196.0,0.00028656,30]
[426549063,1782580242000,-151.0,0.00028448,3]
[426549089,1782580242000,-360.0,0.00028656,30]
[426549051,1782580242000,-1372.41773916,0.00028205,7]
[426549052,1782580242000,-531.58331265,0.00028238,2]
[426549054,1782580242000,-478.61597921,0.00028333,2]
[426549057,1782580242000,-531.58331265,0.00028424,2]
[426549064,1782580242000,-151.0,0.00028448,3]
[426549053,1782580242000,-15655.94455375,0.00028311,2]
[426549055,1782580242000,-200.0,0.00028387,2]
[426549114,1782580242000,-151.0,0.00028996,7]
[426549061,1782580242000,-160.06620352,0.00028448,3]
[426549065,1782580242000,-151.0,0.00028448,3]
[426549059,1782580242000,-151.0,0.00028448,3]
[426549060,1782580242000,-151.0,0.00028448,3]
[426549062,1782580242000,-151.0,0.00028448,3]
[426549078,1782580242000,-151.0,0.00028595,7]
[426549056,1782580242000,-157.47,0.000284,30]
[426549069,1782580242000,-531.58331265,0.00028465,2]
[426549070,1782580242000,-573.73,0.0002847,2]
[426549067,1782580242000,-302.0,0.00028448,3]
[426549075,1782580242000,-1496.14,0.00028594,7]
[426549074,1782580242000,-267.53529414,0.00028571,2]
[426549071,1782580242000,-644.38,0.0002847,2]
[426549076,1782580242000,-1496.14,0.00028594,7]
[426549068,1782580242000,-507.27036575,0.00028456,60]
[426549072,1782580242000,-697.5271778,0.00028495,2]
[426549077,1782580242000,-453749.0256,0.00028595,2]
[426549073,1782580242000,-1325.03173592,0.00028537,2]
[426549082,1782580242000,-586.0,0.00028655,30]
[426549079,1782580242000,-158.0,0.00028653,30]
[426549066,1782580242000,-151.0,0.00028448,3]
[426549113,1782580242000,-152.353662,0.00028996,7]
[426549058,1782580242000,-573.78,0.00028447,2]
[426549107,1782580242000,-151.0,0.00028996,7]
[426549150,1782580242000,-1325.03173592,0.00029289,2]
[426549155,1782580242000,-166.0,0.000294,3]
[426549154,1782580242000,-880.0,0.00029297,5]
[426549145,1782580242000,-500.0,0.000291,7]
[426549152,1782580242000,-873.0,0.00029297,5]
[426549144,1782580242000,-500.0,0.000291,7]
[426549151,1782580242000,-1325.03173592,0.00029294,2]
[426549157,1782580242000,-152.0,0.00029572,3]
[426549168,1782580242000,-386.0,0.00029655,30]
[426549156,1782580242000,-151.0,0.00029497,7]
[426549171,1782580242000,-157.0,0.00029655,30]
[426549167,1782580242000,-586.0,0.00029655,30]
[426549166,1782580242000,-155.0,0.00029655,30]
[426549149,1782580242000,-350.0,0.00029124,2]
[426549160,1782580242000,-301.34927632,0.000296,7]
[426549172,1782580242000,-251.0,0.00029655,30]
[426549162,1782580242000,-697.52717774,0.00029629,2]
[426549165,1782580242000,-218.0,0.00029653,30]
[426549164,1782580242000,-158.0,0.00029653,30]
[426549173,1782580242000,-175.0,0.00029656,30]
[426549175,1782580242000,-360.0,0.00029656,30]
[426549176,1782580242000,-196.0,0.00029656,30]
[426549178,1782580242000,-1325.03173592,0.00029776,2]
[426549177,1782580242000,-4500.0,0.000297,10]
[426549174,1782580242000,-155.0,0.00029656,30]
[426549179,1782580242000,-1325.03173592,0.00029783,2]
[426549180,1782580242000,-285.00958,0.0002979,2]
[426549111,1782580242000,-151.0,0.00028996,7]
[426549158,1782580242000,-1325.03173592,0.00029579,2]
[426549148,1782580242000,-26662.0,0.0002912,20]
[426549170,1782580242000,-154.0,0.00029655,30]
[426549147,1782580242000,-174.55,0.000291,7]
[426549153,1782580242000,-898.0,0.00029297,5]
[426549117,1782580242000,-151.0,0.00028996,7]
[426549119,1782580242000,-151.0,0.00028996,7]
[426549122,1782580242000,-151.0,0.00028996,7]
[426549118,1782580242000,-151.0,0.00028996,7]
[426549125,1782580242000,-151.0,0.00028996,7]
[426549123,1782580242000,-151.0,0.00028996,7]
[426549124,1782580242000,-151.0,0.00028996,7]
[426549121,1782580242000,-151.0,0.00028996,7]
[426549129,1782580242000,-151.0,0.00028996,7]
[426549128,1782580242000,-151.0,0.00028996,7]
[426549126,1782580242000,-151.0,0.00028996,7]
[426549127,1782580242000,-151.0,0.00028996,7]
[426549131,1782580242000,-789.33,0.00029,2]
[426549120,1782580242000,-151.0,0.00028996,7]
[426549146,1782580242000,-500.0,0.000291,7]
[426549141,1782580242000,-192.79,0.00029,7]
[426549143,1782580242000,-500.0,0.000291,7]
[426549140,1782580242000,-500.0,0.00029,7]
[426549138,1782580242000,-500.0,0.00029,7]
[426549139,1782580242000,-500.0,0.00029,7]
[426549137,1782580242000,-500.0,0.00029,7]
[426549136,1782580242000,-500.0,0.00029,7]
[426549112,1782580242000,-151.0,0.00028996,7]
[426549134,1782580242000,-500.0,0.00029,7]
[426549142,1782580242000,-500.0,0.000291,7]
[426549133,1782580242000,-500.0,0.00029,7]
[426549130,1782580242000,-1578.66,0.00029,2]
[426549132,1782580242000,-983.93,0.00029,2]
[426549135,1782580242000,-500.0,0.00029,7]
[426549228,1782580243000,-300.0,0.00030099,10]
[426549229,1782580243000,-666.0,0.00030099,10]
[426549237,1782580243000,-1496.14,0.00030099,7]
[426549221,1782580243000,-285.00958,0.0003009,3]
[426549217,1782580243000,-26662.0,0.0003008,20]
[426549219,1782580243000,-285.00958,0.0003009,3]
[426549220,1782580243000,-285.00959,0.0003009,3]
[426549218,1782580243000,-49618.0,0.00030082,2]
[426549216,1782580243000,-198.54921384,0.00030075,2]
[426549214,1782580243000,-1002.72731128,0.00030071,2]
[426549215,1782580243000,-1864.46902471,0.00030071,2]
[426549223,1782580243000,-365.94876,0.0003009,3]
[426549222,1782580243000,-365.94875,0.0003009,3]
[426549225,1782580243000,-732.72017833,0.0003009,2]
[426549249,1782580243000,-150.0,0.000301,2]
[426549226,1782580243000,-151.0,0.00030097,7]
[426549233,1782580243000,-1496.14,0.00030099,7]
[426549230,1782580243000,-300.0,0.00030099,10]
[426549227,1782580243000,-151.0,0.00030097,7]
[426549231,1782580243000,-300.0,0.00030099,10]
[426549234,1782580243000,-1496.14,0.00030099,7]
[426549236,1782580243000,-1496.14,0.00030099,7]
[426549232,1782580243000,-1496.14,0.00030099,7]
[426549251,1782580243000,-150.0,0.000301,2]
[426549243,1782580243000,-1496.14,0.00030099,7]
[426549241,1782580243000,-1496.14,0.00030099,7]
[426549239,1782580243000,-1496.14,0.00030099,7]
[426549224,1782580243000,-365.94876,0.0003009,3]
[426549235,1782580243000,-1496.14,0.00030099,7]
[426549213,1782580243000,-168.24,0.00030044,2]
[426549182,1782580243000,-285.00958,0.0002979,2]
[426549209,1782580243000,-2500.0,0.0003,2]
[426549183,1782580243000,-365.94876,0.0002979,2]
[426549244,1782580243000,-1496.15499651,0.00030099,7]
[426549185,1782580243000,-400.0,0.000298,10]
[426549181,1782580243000,-285.00958,0.0002979,2]
[426549184,1782580243000,-5700.0,0.000298,10]
[426549186,1782580243000,-365.94876,0.0002984,2]
[426549194,1782580243000,-400.0,0.000299,10]
[426549196,1782580243000,-10901.60790363,0.0002994,2]
[426549195,1782580243000,-1325.03173592,0.00029924,2]
[426549198,1782580243000,-1700.0,0.0003,10]
[426549192,1782580243000,-2908.0,0.000299,7]
[426549187,1782580243000,-250.0,0.0002985,7]
[426549188,1782580243000,-200.0,0.00029858,2]
[426549197,1782580243000,-1496.14,0.00029999,7]
[426549212,1782580243000,-725.92406719,0.0003,2]
[426549190,1782580243000,-1325.03173592,0.00029885,2]
[426549191,1782580243000,-365.94876,0.0002989,2]
[426549189,1782580243000,-155.88429786,0.0002987,2]
[426549199,1782580243000,-3028.13561436,0.0003,10]
[426549204,1782580243000,-186.887953,0.0003,30]
[426549208,1782580243000,-12499.99,0.0003,2]
[426549205,1782580243000,-14701.5,0.0003,2]
[426549203,1782580243000,-10000.0,0.0003,2]
[426549206,1782580243000,-22500.0,0.0003,2]
[426549202,1782580243000,-500.71913935,0.0003,7]
[426549201,1782580243000,-153.15647526,0.0003,30]
[426549207,1782580243000,-4083.93901144,0.0003,2]
[426549200,1782580243000,-11000.0,0.0003,10]
[426549210,1782580243000,-12500.0,0.0003,2]
[426549211,1782580243000,-15655.94455375,0.0003,2]
[426549193,1782580243000,-1100.0,0.000299,10]
[426549240,1782580243000,-1496.14,0.00030099,7]
[426549253,1782580243000,-179.69,0.000301,7]
[426549250,1782580243000,-4248.3184782,0.000301,2]
[426549283,1782580243000,-151.0,0.000301,7]
[426549281,1782580243000,-151.0,0.000301,7]
[426549279,1782580243000,-151.000006,0.000301,7]
[426549290,1782580243000,-151.0,0.000301,7]
[426549284,1782580243000,-151.0,0.000301,7]
[426549289,1782580243000,-151.0,0.000301,7]
[426549285,1782580243000,-151.0,0.000301,7]
[426549286,1782580243000,-260.248018,0.000301,7]
[426549288,1782580243000,-151.0,0.000301,7]
[426549287,1782580243000,-151.0,0.000301,7]
[426549302,1782580243000,-251.956139,0.000301,7]
[426549292,1782580243000,-151.0,0.000301,7]
[426549247,1782580243000,-1756093.77586458,0.000301,7]
[426549303,1782580243000,-151.0,0.000301,7]
[426549293,1782580243000,-151.0,0.000301,7]
[426549298,1782580243000,-151.0,0.000301,7]
[426549295,1782580243000,-151.0,0.000301,7]
[426549294,1782580243000,-151.0,0.000301,7]
[426549297,1782580243000,-151.0,0.000301,7]
[426549296,1782580243000,-151.0,0.000301,7]
[426549301,1782580243000,-151.0,0.000301,7]
[426549299,1782580243000,-203.787076,0.000301,7]
[426549300,1782580243000,-151.0,0.000301,7]
[426549304,1782580243000,-151.0,0.000301,7]
[426549306,1782580243000,-151.0,0.000301,7]
[426549308,1782580243000,-151.0,0.000301,7]
[426549307,1782580243000,-151.0,0.000301,7]
[426549309,1782580243000,-151.0,0.000301,7]
[426549305,1782580243000,-151.0,0.000301,7]
[426549282,1782580243000,-151.0,0.000301,7]
[426549280,1782580243000,-151.0,0.000301,7]
[426549291,1782580243000,-170.554169,0.000301,7]
[426549273,1782580243000,-151.0,0.000301,7]
[426549278,1782580243000,-151.0,0.000301,7]
[426549238,1782580243000,-1496.14,0.00030099,7]
[426549248,1782580243000,-200.59593501,0.000301,7]
[426549245,1782580243000,-620.9713389,0.000301,15]
[426549242,1782580243000,-1496.14,0.00030099,7]
[426549246,1782580243000,-2408737.59426742,0.000301,7]
[426549252,1782580243000,-3022.36156208,0.000301,2]
[426549254,1782580243000,-4292.41437361,0.000301,2]
[426549261,1782580243000,-300.0,0.000301,5]
[426549259,1782580243000,-300.0,0.000301,5]
[426549255,1782580243000,-1023.91958843,0.000301,2]
[426549257,1782580243000,-464978.56944377,0.000301,2]
[426549256,1782580243000,-1168.87,0.000301,7]
[426549258,1782580243000,-300.0,0.000301,5]
[426549260,1782580243000,-300.0,0.000301,5]
[426549262,1782580243000,-300.0,0.000301,5]
[426549263,1782580243000,-536909.17078407,0.000301,7]
[426549274,1782580243000,-151.0,0.000301,7]
[426549271,1782580243000,-151.0,0.000301,7]
[426549270,1782580243000,-151.0,0.000301,7]
[426549272,1782580243000,-151.0,0.000301,7]
[426549269,1782580243000,-151.0,0.000301,7]
[426549268,1782580243000,-151.0,0.000301,7]
[426549275,1782580243000,-151.0,0.000301,7]
[426549265,1782580243000,-153.918493,0.000301,7]
[426549266,1782580243000,-288.137838,0.000301,7]
[426549276,1782580243000,-151.0,0.000301,7]
[426549277,1782580243000,-151.0,0.000301,7]
[426549264,1782580243000,-151.0,0.000301,7]
[426549267,1782580243000,-151.0,0.000301,7]
[426549354,1782580244000,-154.0,0.00030655,30]
[426549364,1782580244000,-1000.0,0.00031,7]
[426549357,1782580244000,-175.0,0.00030656,30]
[426549348,1782580244000,-292.69643004,0.0003063,14]
[426549349,1782580244000,-158.0,0.00030653,30]
[426549344,1782580244000,-251.0,0.0003036,2]
[426549345,1782580244000,-373.0,0.00030392,2]